fUSD/lending_fUSD_20241112
["ID","MTS","AMOUNT","RATE_DAILY","PERIOD"]
[342041171,1731382232343,-829.16,0.00013468,2]
[342041172,1731382232352,-594.87,0.00013473,2]
[342041173,1731382232361,-2454.58,0.00013473,2]
[342041174,1731382232370,-594.87,0.0001348,2]
[342041175,1731382232379,-594.87,0.00013488,2]
[342041176,1731382232388,-170.93,0.00013488,2]
[342041177,1731382232396,-150.99,0.00013488,2]
[342041178,1731382232406,-594.87,0.00013495,2]
[342041179,1731382232415,-594.87,0.00013502,2]
[342041180,1731382232423,-594.87,0.00013509,2]
[342041181,1731382232432,-594.87,0.00013516,2]
[342041182,1731382232441,-258.42,0.00013519,2]
[342041183,1731382232450,-594.87,0.00013523,2]
[342041184,1731382232459,-594.87,0.0001353,2]
[342041185,1731382232468,-594.87,0.00013537,2]
[342041186,1731382232476,-594.87,0.00013544,2]
[342041187,1731382232485,-594.87,0.00013551,2]
[342041188,1731382232494,-399.9,0.00013556,2]
[342041189,1731382232503,-594.87,0.00013559,2]
[342041190,1731382232515,-594.87,0.00013566,2]
[342041191,1731382232524,-150.0,0.00013572,2]
[342041192,1731382232533,-322.86,0.00013572,2]
[342041193,1731382232542,-594.87,0.00013573,2]
[342041194,1731382232551,-594.87,0.0001358,2]
[342041195,1731382232560,-594.87,0.00013587,2]
[342041196,1731382232569,-594.87,0.00013594,2]
[342041197,1731382232578,-230.15,0.00013672,2]
[342041198,1731382232587,-500.0,0.00013699,2]
[342041199,1731382232596,-250.0,0.00013699,2]
[342041201,1731382232605,-150.0,0.00013699,2]
[342041202,1731382232614,-250.0,0.000137,2]
[342041203,1731382232623,-358.29695227,0.000137,2]
[342041204,1731382232632,-732.23,0.00013718,2]
[342041205,1731382232642,-250.0,0.00013756,2]
[342041206,1731382232651,-1263.91877635,0.00013756,2]
[342041207,1731382232703,-6638.02122365,0.00013756,2]
[342041208,1731382232713,-488.74,0.00013756,2]
[342041209,1731382232722,-166.39,0.00013828,2]
[342041210,1731382232731,-500.0,0.00013848,2]
[342041211,1731382232740,-200.0,0.00013862,2]
[342041212,1731382232749,-2056.31,0.00013866,2]
[342041213,1731382232758,-200.0,0.00013872,2]
[342041214,1731382232768,-200.0,0.00013874,2]
[342041215,1731382232777,-200.0,0.00013883,2]
[342041216,1731382232786,-200.0,0.00013885,2]
[342041217,1731382232795,-424.599,0.0001389,2]
[342041218,1731382232804,-200.0,0.00013896,2]
[342041219,1731382232813,-31985.14615273,0.00014,2]
[342041220,1731382232822,-258.42,0.00014195,2]
[342041221,1731382232831,-322.79,0.00014247,2]
[342041222,1731382232840,-162.86,0.00014482,2]
[342041223,1731382232849,-158.643,0.00014561,2]
[342041224,1731382232858,-3000.0,0.0001475,2]
[342041225,1731382232867,-150.0,0.00014771,2]
[342041226,1731382232876,-150.0,0.00014771,2]
[342041227,1731382232885,-735.88,0.00014782,2]
[342041228,1731382232895,-5180.35659445,0.00014789,2]
[342041229,1731382232907,-47744.4527,0.00014789,2]
[342041230,1731382232916,-1000.0,0.00014798,2]
[342041231,1731382232925,-154.62890665,0.000148,2]
[342041232,1731382232934,-5180.35659439,0.00014801,2]
[342041233,1731382232943,-5180.35659439,0.00014814,2]
[342041234,1731382232952,-150.0,0.00014825,2]
[342041235,1731382232962,-5180.35659439,0.00014826,2]
[342041236,1731382232971,-5180.35659439,0.00014838,2]
[342041237,1731382232981,-150.0,0.00014847,2]
[342041238,1731382232991,-5180.35659439,0.00014851,2]
[342041239,1731382233000,-150.0,0.00014853,2]
[342041240,1731382233010,-5180.35659439,0.00014863,2]
[342041241,1731382233027,-258.42,0.00014871,2]
[342041242,1731382233037,-500.0,0.00014873,2]
[342041243,1731382233046,-500.0,0.00014873,2]
[342041244,1731382233055,-5180.35659439,0.00014875,2]
[342041245,1731382233064,-5180.35659439,0.00014888,2]
[342041246,1731382233074,-150.0,0.00014888,2]
[342041247,1731382233084,-500.0,0.00014888,2]
[342041248,1731382233094,-500.0,0.00014888,2]
[342041249,1731382233103,-500.0,0.00014888,2]
[342041250,1731382233113,-500.0,0.00014888,2]
[342041251,1731382233122,-500.0,0.00014888,2]
[342041252,1731382233132,-6568.88,0.00014888,2]
[342041253,1731382233141,-500.0,0.00014888,2]
[342041254,1731382233151,-833.3,0.00014888,2]
[342041255,1731382233161,-300.0,0.00014888,2]
[342041256,1731382233171,-3187425.54396041,0.00014888,2]
[342041257,1731382233180,-291.20929577,0.00014889,2]
[342041258,1731382233190,-475.79247489,0.00014889,2]
[342041259,1731382233199,-260.8553051,0.00014889,2]
[342041260,1731382233208,-513.74921373,0.00014889,2]
[342041261,1731382233218,-512.0969661,0.00014889,2]
[342041262,1731382233227,-510.06142719,0.00014889,2]
[342041263,1731382233236,-507.55847258,0.00014889,2]
[342041264,1731382233246,-505.55154641,0.00014889,2]
[342041265,1731382233255,-500.0,0.00014889,2]
[342041266,1731382233266,-500.0,0.00014889,2]
[342041267,1731382233276,-502.61221553,0.00014889,2]
[342041268,1731382233285,-502.54749544,0.00014889,2]
[342041269,1731382233295,-510.48210012,0.00014889,2]
[342041270,1731382233304,-508.76904598,0.00014889,2]
[342041271,1731382233314,-506.37599222,0.00014889,2]
[342041272,1731382233323,-211.87422615,0.00014889,2]
[342041273,1731382233332,-503.62549563,0.00014889,2]
[342041274,1731382233341,-509.34244676,0.00014889,2]
[342041275,1731382233350,-503.98741108,0.00014889,2]
[342041276,1731382233359,-506.30281652,0.00014889,2]
[342041277,1731382233368,-507.19787835,0.00014889,2]
[342041278,1731382233377,-500.0,0.00014889,2]
[342041279,1731382233386,-499.20264109,0.00014889,2]
[342041280,1731382233395,-508.51569325,0.00014889,2]
[342041281,1731382233405,-500.0,0.00014889,2]
[342041282,1731382233414,-502.64962914,0.00014889,2]
[342041283,1731382233424,-507.04281393,0.00014889,2]
[342041284,1731382233433,-511.33137586,0.00014889,2]
[342041285,1731382233443,-503.71650758,0.00014889,2]
[342041286,1731382233452,-505.21712051,0.00014889,2]
[342041287,1731382233462,-508.26730497,0.00014889,2]
[342041288,1731382233472,-550.9782777,0.00014889,2]
[342041289,1731382233482,-514.39470178,0.00014889,2]
[342041290,1731382233491,-503.61790244,0.00014889,2]
[342041291,1731382233501,-509.630516,0.00014889,2]
[342041292,1731382233510,-590.00454976,0.00014889,2]
[342041293,1731382233522,-505.301782,0.00014889,2]
[342041294,1731382233532,-507.59926516,0.00014889,2]
[342041295,1731382233541,-562.21255799,0.00014889,2]
[342041296,1731382233551,-508.16317802,0.00014889,2]
[342041297,1731382233560,-510.27370974,0.00014889,2]
[342041298,1731382233569,-503.64919501,0.00014889,2]
[342041299,1731382233579,-441.22741913,0.00014889,2]
[342041300,1731382233588,-515.73948746,0.00014889,2]
[342041301,1731382233597,-508.11405915,0.00014889,2]
[342041302,1731382233606,-510.73578025,0.00014889,2]
[342041303,1731382233615,-500.66939147,0.00014889,2]
[342041304,1731382233625,-500.0,0.00014889,2]
[342041305,1731382233634,-512.48862988,0.00014889,2]
[342041306,1731382233643,-500.0,0.00014889,2]
[342041307,1731382233653,-507.36748358,0.00014889,2]
[342041308,1731382233662,-500.0,0.00014889,2]
[342041309,1731382233671,-500.0,0.00014889,2]
[342041310,1731382233680,-500.0,0.00014889,2]
[342041311,1731382233690,-450.68560319,0.00014889,2]
[342041312,1731382233699,-500.0,0.00014889,2]
[342041313,1731382233708,-500.0,0.00014889,2]
[342041314,1731382233717,-500.0,0.00014889,2]
[342041315,1731382233726,-500.0,0.00014889,2]
[342041316,1731382233735,-500.0,0.00014889,2]
[342041317,1731382233744,-503.55905446,0.00014889,2]
[342041318,1731382233753,-500.0,0.00014889,2]
[342041319,1731382233762,-502.903938,0.00014889,2]
[342041320,1731382233774,-910.19,0.00014889,2]
[342041321,1731382233783,-507.79005056,0.00014889,2]
[342041322,1731382233793,-500.0,0.00014889,2]
[342041323,1731382233803,-286.96575116,0.00014889,2]
[342041324,1731382233811,-500.0,0.00014889,2]
[342041325,1731382233821,-504.70274533,0.00014889,2]
[342041326,1731382233830,-428.12245968,0.00014889,2]
[342041327,1731382233840,-500.0,0.00014889,2]
[342041328,1731382233849,-500.0,0.00014889,2]
[342041329,1731382233859,-500.0,0.00014889,2]
[342041330,1731382233869,-500.0,0.00014889,2]
[342041331,1731382233878,-500.0,0.00014889,2]
[342041332,1731382233887,-500.0,0.00014889,2]
[342041333,1731382233898,-505.15173916,0.00014889,2]
[342041334,1731382233910,-504.7402811,0.00014889,2]
[342041335,1731382233920,-505.31495646,0.00014889,2]
[342041336,1731382233929,-500.0,0.00014889,2]
[342041337,1731382233939,-500.0,0.00014889,2]
[342041338,1731382233949,-2325.9,0.00014889,2]
[342041339,1731382233959,-503.78456275,0.00014889,2]
[342041340,1731382233969,-500.0,0.00014889,2]
[342041341,1731382233982,-500.0,0.00014889,2]
[342041342,1731382233993,-507.74069086,0.00014889,2]
[342041343,1731382234003,-1222.25,0.00014889,2]
[342041344,1731382234012,-503.07687618,0.00014889,2]
[342041345,1731382234024,-502.95441603,0.00014889,2]
[342041346,1731382234033,-216.98623686,0.00014889,2]
[342041347,1731382234043,-500.0,0.00014889,2]
[342041348,1731382234053,-500.0,0.00014889,2]
[342041349,1731382234062,-506.36558323,0.00014889,2]
[342041350,1731382234072,-513.41953481,0.00014889,2]
[342041351,1731382234081,-501.56492171,0.00014889,2]
[342041352,1731382234091,-150.0,0.00014889,2]
[342041353,1731382234101,-500.0,0.00014889,2]
[342041354,1731382234110,-589.15204997,0.00014889,2]
[342041355,1731382234120,-517.83611795,0.00014889,2]
[342041356,1731382234129,-500.0,0.00014889,2]
[342041357,1731382234139,-534.69892587,0.00014889,2]
[342041358,1731382234148,-500.0,0.00014889,2]
[342041359,1731382234157,-580.01,0.00014889,2]
[342041360,1731382234166,-500.0,0.00014889,2]
[342041361,1731382234175,-500.0,0.00014889,2]
[342041362,1731382234185,-500.0,0.00014889,2]
[342041363,1731382234195,-986.82,0.00014889,2]
[342041364,1731382234204,-500.0,0.00014889,2]
[342041365,1731382234214,-617.47441858,0.00014889,2]
[342041366,1731382234223,-501.39238304,0.00014889,2]
[342041367,1731382234232,-500.0,0.00014889,2]
[342041368,1731382234242,-510.87905384,0.00014889,2]
[342041369,1731382234250,-500.0,0.00014889,2]
[342041370,1731382234260,-500.0,0.00014889,2]
[342041371,1731382234270,-500.0,0.00014889,2]
[342041372,1731382234279,-280.60575666,0.00014889,2]
[342041373,1731382234289,-460.85370386,0.00014889,2]
[342041374,1731382234298,-500.0,0.00014889,2]
[342041375,1731382234505,-501.11751556,0.00014889,2]
[342041376,1731382234518,-500.0,0.00014889,2]
[342041377,1731382234527,-501.35458439,0.00014889,2]
[342041378,1731382234536,-500.0,0.00014889,2]
[342041379,1731382234545,-500.0,0.00014889,2]
[342041380,1731382234555,-505.85859091,0.00014889,2]
[342041381,1731382234565,-502.10694233,0.00014889,2]
[342041382,1731382234574,-722.14,0.00014889,2]
[342041383,1731382234584,-500.0,0.00014889,2]
[342041384,1731382234593,-519.53265966,0.00014889,2]
[342041385,1731382234603,-521.94445651,0.00014889,2]
[342041386,1731382234612,-500.0,0.00014889,2]
[342041387,1731382234621,-500.0,0.00014889,2]
[342041388,1731382234630,-500.0,0.00014889,2]
[342041389,1731382234640,-500.0,0.00014889,2]
[342041390,1731382234649,-500.0,0.00014889,2]
[342041391,1731382234658,-500.02749799,0.00014889,2]
[342041392,1731382234667,-324.65237798,0.00014889,2]
[342041393,1731382234676,-512.48748663,0.00014889,2]
[342041394,1731382234685,-500.0,0.00014889,2]
[342041395,1731382234695,-502.13476991,0.00014889,2]
[342041396,1731382234704,-500.0,0.00014889,2]
[342041397,1731382234714,-518.89959172,0.00014889,2]
[342041398,1731382234724,-256.18228394,0.00014889,2]
[342041399,1731382234733,-500.0,0.00014889,2]
[342041400,1731382234742,-518.81600914,0.00014889,2]
[342041401,1731382234752,-1220.62,0.00014889,2]
[342041402,1731382234761,-500.0,0.00014889,2]
[342041403,1731382234772,-539.59,0.00014889,2]
[342041404,1731382234781,-503.57501376,0.00014889,2]
[342041405,1731382234790,-500.0,0.00014889,2]
[342041406,1731382234799,-500.0,0.00014889,2]
[342041407,1731382234808,-463.78380601,0.00014889,2]
[342041408,1731382234817,-500.0,0.00014889,2]
[342041409,1731382234826,-501.34334326,0.00014889,2]
[342041410,1731382234835,-500.0,0.00014889,2]
[342041411,1731382234844,-500.0,0.00014889,2]
[342041412,1731382234853,-604.97362958,0.00014889,2]
[342041413,1731382234862,-1333.71,0.00014889,2]
[342041414,1731382234871,-570.64478161,0.00014889,2]
[342041415,1731382234880,-562.91011858,0.00014889,2]
[342041416,1731382234889,-500.0,0.00014889,2]
[342041417,1731382234900,-555.43407528,0.00014889,2]
[342041418,1731382234911,-1383.69,0.00014889,2]
[342041419,1731382234920,-500.0,0.00014889,2]
[342041420,1731382234930,-500.0,0.00014889,2]
[342041421,1731382234940,-562.83686078,0.00014889,2]
[342041422,1731382234950,-500.0,0.00014889,2]
[342041423,1731382234959,-11304.6,0.00014889,2]
[342041424,1731382234968,-500.0,0.00014889,2]
[342041425,1731382234978,-500.0,0.00014889,2]
[342041426,1731382234987,-150.0,0.00014889,2]
[342041427,1731382234996,-592.88195422,0.00014889,2]
[342041428,1731382235006,-500.0,0.00014889,2]
[342041429,1731382235016,-707.2,0.00014889,2]
[342041430,1731382235025,-3451.37,0.00014889,2]
[342041431,1731382235034,-580.83273205,0.00014889,2]
[342041432,1731382235044,-257.0176847,0.00014889,2]
[342041433,1731382235053,-299.0,0.00014889,2]
[342041434,1731382235062,-500.0,0.00014889,2]
[342041435,1731382235072,-1271.03,0.00014889,2]
[342041436,1731382235082,-1171.52,0.00014889,2]
[342041437,1731382235091,-866.11,0.00014889,2]
[342041438,1731382235101,-583.87578799,0.00014889,2]
[342041439,1731382235110,-500.0,0.00014889,2]
[342041440,1731382235119,-500.0,0.00014889,2]
[342041441,1731382235128,-500.0,0.00014889,2]
[342041442,1731382235138,-266.25898424,0.00014889,2]
[342041443,1731382235147,-500.0,0.00014889,2]
[342041444,1731382235156,-456.88150134,0.00014889,2]
[342041445,1731382235165,-542.70013642,0.00014889,2]
[342041446,1731382235175,-500.0,0.00014889,2]
[342041447,1731382235184,-788.78,0.00014889,2]
[342041448,1731382235193,-500.0,0.00014889,2]
[342041449,1731382235202,-500.0,0.00014889,2]
[342041450,1731382235211,-500.0,0.00014889,2]
[342041451,1731382235220,-500.0,0.00014889,2]
[342041452,1731382235230,-786.16,0.00014889,2]
[342041453,1731382235239,-500.0,0.00014889,2]
[342041454,1731382235248,-6568.88,0.00014889,2]
[342041455,1731382235257,-500.0,0.00014889,2]
[342041456,1731382235268,-500.0,0.00014889,2]
[342041457,1731382235277,-2765.08,0.00014889,2]
[342041458,1731382235286,-500.0,0.00014889,2]
[342041459,1731382235295,-1088.73,0.00014889,2]
[342041460,1731382235304,-500.0,0.00014889,2]
[342041461,1731382235313,-500.0,0.00014889,2]
[342041462,1731382235322,-507.53880326,0.00014889,2]
[342041463,1731382235331,-500.0,0.00014889,2]
[342041464,1731382235339,-500.0,0.00014889,2]
[342041465,1731382235348,-500.0,0.00014889,2]
[342041466,1731382235357,-500.0,0.00014889,2]
[342041467,1731382235366,-284.56289082,0.00014889,2]
[342041468,1731382235375,-833.3,0.00014889,2]
[342041469,1731382235384,-250000.0,0.0001489,2]
[342041470,1731382235393,-500.0,0.00014897,2]
[342041471,1731382235402,-500.0,0.00014897,2]
[342041472,1731382235412,-500.0,0.00014897,2]
[342041473,1731382235421,-1383.69,0.00014897,2]
[342041474,1731382235430,-500.0,0.00014897,2]
[342041475,1731382235439,-500.0,0.00014897,2]
[342041476,1731382235448,-707.2,0.00014897,2]
[342041477,1731382235457,-500.0,0.00014897,2]
[342041478,1731382235466,-500.0,0.00014897,2]
[342041479,1731382235475,-262.70269271,0.00014897,2]
[342041480,1731382235484,-500.0,0.00014897,2]
[342041481,1731382235493,-2765.08,0.00014897,2]
[342041482,1731382235503,-1088.73,0.00014897,2]
[342041483,1731382235512,-500.0,0.00014897,2]
[342041484,1731382235523,-500.0,0.00014897,2]
[342041485,1731382235533,-500.0,0.00014897,2]
[342041486,1731382235542,-500.0,0.00014897,2]
[342041487,1731382235551,-833.3,0.00014897,2]
[342041488,1731382235560,-500.0,0.00014898,2]
[342041489,1731382235569,-500.0,0.00014898,2]
[342041490,1731382235578,-500.0,0.00014898,2]
[342041491,1731382235588,-500.0,0.00014898,2]
[342041492,1731382235597,-597.0111184,0.00014898,2]
[342041493,1731382235605,-500.0,0.00014898,2]
[342041494,1731382235615,-633.30546513,0.00014898,2]
[342041495,1731382235623,-500.0,0.00014898,2]
[342041496,1731382235632,-500.0,0.00014898,2]
[342041497,1731382235642,-500.0,0.00014898,2]
[342041498,1731382235652,-580.77331788,0.00014898,2]
[342041499,1731382235661,-500.0,0.00014898,2]
[342041500,1731382235670,-502.45719813,0.00014898,2]
[342041501,1731382235679,-500.0,0.00014898,2]
[342041502,1731382235689,-500.0,0.00014898,2]
[342041503,1731382235698,-462.80820845,0.00014898,2]
[342041504,1731382235707,-500.0,0.00014898,2]
[342041505,1731382235716,-910.19,0.00014898,2]
[342041506,1731382235725,-508.03121964,0.00014898,2]
[342041507,1731382235734,-503.41605026,0.00014898,2]
[342041508,1731382235743,-500.0,0.00014898,2]
[342041509,1731382235752,-500.0,0.00014898,2]
[342041510,1731382235761,-502.14184798,0.00014898,2]
[342041511,1731382235771,-500.0,0.00014898,2]
[342041512,1731382235781,-605.28567579,0.00014898,2]
[342041513,1731382235790,-500.0,0.00014898,2]
[342041514,1731382235799,-500.0,0.00014898,2]
[342041515,1731382235809,-500.0,0.00014898,2]
[342041516,1731382235819,-571.37030502,0.00014898,2]
[342041517,1731382235828,-2325.9,0.00014898,2]
[342041518,1731382235837,-490.36068071,0.00014898,2]
[342041519,1731382235847,-500.0,0.00014898,2]
[342041520,1731382235856,-1222.25,0.00014898,2]
[342041521,1731382235866,-500.0,0.00014898,2]
[342041522,1731382235876,-500.0,0.00014898,2]
[342041523,1731382235887,-500.0,0.00014898,2]
[342041524,1731382235897,-233.91575583,0.00014898,2]
[342041525,1731382235912,-500.0,0.00014898,2]
[342041526,1731382235921,-500.0,0.00014898,2]
[342041527,1731382235931,-500.0,0.00014898,2]
[342041528,1731382235942,-500.0,0.00014898,2]
[342041529,1731382235952,-580.01,0.00014898,2]
[342041530,1731382235963,-500.0,0.00014898,2]
[342041531,1731382235975,-500.0,0.00014898,2]
[342041532,1731382235988,-252.46994061,0.00014898,2]
[342041533,1731382235998,-500.0,0.00014898,2]
[342041534,1731382236008,-500.0,0.00014898,2]
[342041535,1731382236022,-986.82,0.00014898,2]
[342041536,1731382236032,-500.0,0.00014898,2]
[342041537,1731382236042,-358.88357734,0.00014898,2]
[342041538,1731382236051,-296.34145166,0.00014898,2]
[342041539,1731382236061,-500.0,0.00014898,2]
[342041540,1731382236071,-471.92677651,0.00014898,2]
[342041541,1731382236081,-500.0,0.00014898,2]
[342041542,1731382236091,-430.93186674,0.00014898,2]
[342041543,1731382236100,-500.0,0.00014898,2]
[342041544,1731382236111,-500.0,0.00014898,2]
[342041545,1731382236122,-500.0,0.00014898,2]
[342041546,1731382236132,-500.0,0.00014898,2]
[342041547,1731382236142,-500.0,0.00014898,2]
[342041548,1731382236152,-722.14,0.00014898,2]
[342041549,1731382236161,-722.14,0.00014898,2]
[342041550,1731382236180,-511.4744422,0.00014898,2]
[342041551,1731382236200,-500.0,0.00014898,2]
[342041552,1731382236217,-500.0,0.00014898,2]
[342041553,1731382236228,-500.0,0.00014898,2]
[342041554,1731382236238,-500.0,0.00014898,2]
[342041555,1731382236248,-500.0,0.00014898,2]
[342041556,1731382236259,-500.0,0.00014898,2]
[342041557,1731382236275,-500.0,0.00014898,2]
[342041558,1731382236285,-1220.62,0.00014898,2]
[342041559,1731382236295,-500.0,0.00014898,2]
[342041560,1731382236305,-500.0,0.00014898,2]
[342041561,1731382236319,-539.59,0.00014898,2]
[342041562,1731382236327,-539.59,0.00014898,2]
[342041563,1731382236338,-432.903585,0.00014898,2]
[342041564,1731382236350,-432.903585,0.00014898,2]
[342041565,1731382236362,-297.065452,0.00014898,2]
[342041566,1731382236372,-647.30315148,0.00014898,2]
[342041567,1731382236382,-500.0,0.00014898,2]
[342041568,1731382236393,-500.0,0.00014898,2]
[342041569,1731382236404,-500.0,0.00014898,2]
[342041570,1731382236415,-500.0,0.00014898,2]
[342041571,1731382236426,-314.46115968,0.00014898,2]
[342041572,1731382236435,-500.0,0.00014898,2]
[342041573,1731382236445,-151.0,0.00014898,2]
[342041574,1731382236454,-500.0,0.00014898,2]
[342041575,1731382236463,-500.0,0.00014898,2]
[342041576,1731382236472,-500.0,0.00014898,2]
[342041577,1731382236481,-500.0,0.00014898,2]
[342041578,1731382236490,-500.0,0.00014898,2]
[342041579,1731382236499,-440.27,0.00014898,2]
[342041580,1731382236508,-276.6268161,0.00014898,2]
[342041581,1731382236518,-1333.71,0.00014898,2]
[342041582,1731382236529,-1333.71,0.00014898,2]
[342041583,1731382236538,-500.0,0.00014898,2]
[342041584,1731382236547,-366.84690251,0.00014898,2]
[342041585,1731382236556,-1383.69,0.00014898,2]
[342041586,1731382236565,-1383.69,0.00014898,2]
[342041587,1731382236575,-1383.69,0.00014898,2]
[342041588,1731382236584,-500.0,0.00014898,2]
[342041589,1731382236593,-1383.69,0.00014898,2]
[342041590,1731382236603,-500.0,0.00014898,2]
[342041591,1731382236612,-1383.69,0.00014898,2]
[342041592,1731382236621,-1383.69,0.00014898,2]
[342041593,1731382236631,-500.0,0.00014898,2]
[342041594,1731382236639,-500.0,0.00014898,2]
[342041595,1731382236648,-500.0,0.00014898,2]
[342041596,1731382236657,-546.52,0.00014898,2]
[342041597,1731382236666,-202.81,0.00014898,2]
[342041598,1731382236675,-11304.6,0.00014898,2]
[342041599,1731382236684,-11304.6,0.00014898,2]
[342041600,1731382236693,-151.0,0.00014898,2]
[342041601,1731382236702,-501.60457788,0.00014898,2]
[342041602,1731382236712,-151.0,0.00014898,2]
[342041603,1731382236721,-163.418039,0.00014898,2]
[342041604,1731382236731,-182.453812,0.00014898,2]
[342041605,1731382236740,-707.2,0.00014898,2]
[342041606,1731382236750,-707.2,0.00014898,2]
[342041607,1731382236760,-707.2,0.00014898,2]
[342041608,1731382236774,-707.2,0.00014898,2]
[342041609,1731382236784,-707.2,0.00014898,2]
[342041610,1731382236794,-707.2,0.00014898,2]
[342041611,1731382236803,-182.453812,0.00014898,2]
[342041612,1731382236813,-387.45966,0.00014898,2]
[342041613,1731382236822,-3451.37,0.00014898,2]
[342041614,1731382236831,-3451.37,0.00014898,2]
[342041615,1731382236840,-387.45966,0.00014898,2]
[342041616,1731382236849,-500.0,0.00014898,2]
[342041617,1731382236858,-151.0,0.00014898,2]
[342041618,1731382236867,-500.0,0.00014898,2]
[342041619,1731382236877,-1271.03,0.00014898,2]
[342041620,1731382236886,-1271.03,0.00014898,2]
[342041621,1731382236895,-496.285803,0.00014898,2]
[342041622,1731382236908,-1171.52,0.00014898,2]
[342041623,1731382236917,-1171.52,0.00014898,2]
[342041624,1731382236927,-866.11,0.00014898,2]
[342041625,1731382236936,-866.11,0.00014898,2]
[342041626,1731382236947,-496.285803,0.00014898,2]
[342041627,1731382236956,-500.0,0.00014898,2]
[342041628,1731382236965,-500.0,0.00014898,2]
[342041629,1731382236977,-500.0,0.00014898,2]
[342041630,1731382236986,-500.0,0.00014898,2]
[342041631,1731382236995,-500.0,0.00014898,2]
[342041632,1731382237005,-500.0,0.00014898,2]
[342041633,1731382237014,-500.0,0.00014898,2]
[342041634,1731382237026,-170.17757569,0.00014898,2]
[342041635,1731382237035,-500.0,0.00014898,2]
[342041636,1731382237045,-500.0,0.00014898,2]
[342041637,1731382237054,-500.0,0.00014898,2]
[342041638,1731382237065,-500.0,0.00014898,2]
[342041639,1731382237074,-500.0,0.00014898,2]
[342041640,1731382237083,-151.0,0.00014898,2]
[342041641,1731382237094,-500.0,0.00014898,2]
[342041642,1731382237103,-500.0,0.00014898,2]
[342041643,1731382237112,-354.16730829,0.00014898,2]
[342041644,1731382237121,-500.0,0.00014898,2]
[342041645,1731382237131,-500.0,0.00014898,2]
[342041646,1731382237141,-500.0,0.00014898,2]
[342041647,1731382237151,-500.0,0.00014898,2]
[342041648,1731382237161,-500.0,0.00014898,2]
[342041649,1731382237170,-500.0,0.00014898,2]
[342041650,1731382237179,-500.0,0.00014898,2]
[342041651,1731382237188,-500.0,0.00014898,2]
[342041652,1731382237197,-500.0,0.00014898,2]
[342041653,1731382237207,-500.0,0.00014898,2]
[342041654,1731382237216,-500.0,0.00014898,2]
[342041655,1731382237225,-500.0,0.00014898,2]
[342041656,1731382237234,-500.0,0.00014898,2]
[342041657,1731382237244,-500.0,0.00014898,2]
[342041658,1731382237254,-788.78,0.00014898,2]
[342041659,1731382237263,-788.78,0.00014898,2]
[342041660,1731382237274,-227.072169,0.00014898,2]
[342041661,1731382237284,-500.0,0.00014898,2]
[342041662,1731382237293,-500.0,0.00014898,2]
[342041663,1731382237302,-500.0,0.00014898,2]
[342041664,1731382237311,-151.0,0.00014898,2]
[342041665,1731382237320,-500.0,0.00014898,2]
[342041666,1731382237329,-500.0,0.00014898,2]
[342041667,1731382237338,-500.0,0.00014898,2]
[342041668,1731382237347,-227.072169,0.00014898,2]
[342041669,1731382237356,-151.0,0.00014898,2]
[342041670,1731382237365,-500.0,0.00014898,2]
[342041671,1731382237374,-500.0,0.00014898,2]